Cogmind - Beta 14 @@@ ROGUE MODE // 2024.11.10 @ 09:40:26 Player: Fangrelle Result: Destroyed by D-53 Grenadier with Mini Grenade Launcher Performance ------------- Evolutions (0) 0 Regions Visited (2) 400 Robots Destroyed (31) 155 Value Destroyed (766) 766 Prototype IDs (0) 0 Alien Tech Used (0) 0 Bonus (0) 0 TOTAL SCORE: 1321 Bonus ------- None Cogmind --------- Core Integrity 0/250 Matter 146/300 Energy 100/100 System Corruption 4% Temperature Cool (0) Movement Core (1400) Ox27 Location -10/Mines Parts ------- > --- POWER (1) -------- (None) > --- PROPULSION (2) --- (None) > --- UTILITY (2) ------ Huge Storage Unit > --- WEAPON (2) ------- Mini Grenade Launcher Mini Grenade Launcher > --- INVENTORY (25) --- Light Ion Engine Medium Matter Pod (100) Structural Scanner Visual Processing Unit Visual Processing Unit Visual Processing Unit Improved Terrain Scanner Light Armor Plating Hardened Light Armor Plating Hardened Light Armor Plating Hardened Light Armor Plating Hardened Light Armor Plating Authchip [Processor] Decoy Drone Bay EM Pulse Gun Mini Grenade Launcher Mini Grenade Launcher Datajack Plasma Cutter Mining Claw Peak State ------------ > --- POWER ------------ (None) > --- PROPULSION ------- Aluminum Leg Aluminum Leg > --- UTILITY ---------- Huge Storage Unit Medium Armor Plating > --- WEAPON ----------- Mini Grenade Launcher Mini Grenade Launcher > --- INVENTORY -------- Light Ion Engine Medium Matter Pod Structural Scanner Visual Processing Unit Visual Processing Unit Visual Processing Unit Improved Terrain Scanner Light Armor Plating Medium Armor Plating Hardened Light Armor Plating Hardened Light Armor Plating Hardened Light Armor Plating Hardened Light Armor Plating Authchip [Processor] Decoy Drone Bay EM Pulse Gun Mini Grenade Launcher Mini Grenade Launcher Datajack Plasma Cutter Mining Claw [Rating: 14] Favorites ----------- Power Light Ion Engine Engine Light Ion Engine Propulsion Light Treads Treads Light Treads Leg Aluminum Leg Utility Medium Armor Plating Device Improved Terrain Scanner Storage Huge Storage Unit Protection Medium Armor Plating Weapon EM Pulse Gun Energy Gun EM Pulse Gun Launcher Mini Grenade Launcher Special Weapon Plasma Cutter Build | -11 -10 -10 ------- Run | Yrd Mat Min Slots Evolved . | . . . Power . | . . . Propulsion . | . . . Utility . | . . . Weapon . | . . . Parts Attached 33 | 7 20 6 Power 2 | 1 1 . Engine 2 | 1 1 . Core . | . . . Reactor . | . . . Propulsion 4 | 2 . 2 Treads 2 | 2 . . Leg 2 | . . 2 Wheel . | . . . Hover . | . . . Flight . | . . . Utility 10 | 2 7 1 Device 1 | 1 . . Storage 3 | 1 2 . Processor . | . . . Hackware . | . . . Protection 6 | . 5 1 Artifact . | . . . Weapon 17 | 2 12 3 Energy Gun 11 | 2 8 1 Energy Cannon . | . . . Ballistic Gun . | . . . Ballistic Cannon . | . . . Launcher 5 | . 3 2 Special Weapon 1 | . 1 . Impact Weapon . | . . . Slashing Weapon . | . . . Piercing Weapon . | . . . Special Melee Weapon . | . . . Unidentified Prototypes . | . . . Parts Lost 14 | . 5 9 Power 1 | . . 1 Propulsion 4 | . . 4 Utility 4 | . 2 2 Weapon 5 | . 3 2 Highest Loss Streak 5 | . 2 5 To Critical Strikes . | . . . Average Slot Usage (%) 98 | . 99 88 Engine 13 | . 14 7 Treads 26 | . 28 14 Leg 1 | . . 10 Storage 14 | . 14 14 Protection 13 | . 12 14 Energy Gun 26 | . 27 19 Launcher 1 | . . 7 Peak Build Rating 14 | 9 13 14 Average Rating 11 | 5 11 12 On Entrance 7 | . 9 12 Naked Turns . | . . . Heaviest Build 96 | 13 96 96 Greatest Support 40 | 40 40 40 Greatest Overweight (x) 29 | . 2 29 Average Overweight (x) 1 | . 1 3 Largest Inventory Capacity 25 | 8 25 25 Average Capacity 22 | 7 22 25 Most Carried 25 | 2 25 24 Average Carried 20 | 1 20 22 Final Capacity 25 | 8 25 25 Final Carried 22 | 2 22 21 Class Distribution -------------------- 100% | Mutant Dominant Class ---------------- Mutant | -10/Materials Mutant | -10/Mines Resources | -11 -10 -10 ----------- Run | Yrd Mat Min Matter Collected 657 | 182 444 31 Remotely . | . . . Salvage Created 1046 | 19 963 64 Parts 61 | 3 54 4 Haulers Intercepted 1 | . 1 . Recyclers Shooed . | . . . Parts Field Recycled . | . . . Retrieved Matter . | . . . Parts Self-Destructed . | . . . Prevented . | . . . Kills | -11 -10 -10 ------- Run | Yrd Mat Min Combat Hostiles Destroyed 19 | . 17 2 Guns 15 | . 14 1 AOE 4 | . 3 1 Classes Destroyed 8 | 1 7 . Worker 1 | . 1 . Builder 2 | . 2 . Tunneler 2 | 1 1 . Hauler 1 | . 1 . Operator 3 | . 3 . Watcher 3 | . 3 . Swarmer 3 | . 3 . Grunt 16 | . 14 2 Best Kill Streak 5 | 1 5 1 Combat Bots Only 5 | . 5 1 Max Kills in Single Turn 2 | 1 2 1 Gunslinging . | . . . Exploded 2 | . 2 1 Melee . | . . . Uniques/NPCs Destroyed . | . . . Combat | -11 -10 -10 -------- Run | Yrd Mat Min Hostile Shots Fired 124 | . 100 24 Missed 32 | . 26 6 Damage Taken 1568 | . 911 657 Core 254 | . 69 185 Absorbed by Shields . | . . . Core Remaining (%) 100 | 100 . . Volleys Fired 103 | 1 91 11 Largest 2 | 2 2 2 Hottest 100 | 100 80 80 Shots Fired 195 | 2 174 19 Gun 177 | 2 163 12 Cannon . | . . . Launcher 15 | . 8 7 Special 3 | . 3 . Kinetic . | . . . Thermal 6 | 2 4 . Explosive 15 | . 8 7 Electromagnetic 174 | . 162 12 Robot Hit Streak 7 | 1 7 5 Robot Miss Streak 6 | . 6 2 Penetration Max . | . . . Secondary Targets 4 | . 3 1 Max Gunslinging Chain 1 | . 1 1 Shots Hit Robots 100 | 1 87 12 Core Hits 49 | 1 39 9 Critical Kills . | . . . Critical Parts Destroyed . | . . . Critical Strikes 3 | . 3 . Corrupt 3 | . 3 . Melee Attacks . | . . . Impact . | . . . Slashing . | . . . Piercing . | . . . Sneak Attacks . | . . . Combat Hostiles . | . . . Follow-up Attacks . | . . . Damage Inflicted 1778 | 13 1516 249 Guns 1304 | 13 1218 73 Cannons . | . . . Explosions 474 | . 298 176 Melee . | . . . Ramming . | . . . Kinetic . | . . . Thermal 306 | 13 293 . Explosive 181 | . 5 176 Electromagnetic 1291 | . 1218 73 Impact . | . . . Slashing . | . . . Piercing . | . . . Highest Corruption 4 | . 4 4 Average Corruption 3 | . 3 4 Corruption Purged . | . . . Corruption Blocked . | . . . Effects 50 | . 41 9 Message Errors 15 | . 14 1 Matter Fused 13 | . 11 2 Heat Flow Errors 4 | . 1 3 Energy Discharges 6 | . 4 2 Parts Fused 1 | . 1 . Data Loss (minor) 4 | . 4 . Data Loss (major) 4 | . 4 . Alerts 2 | . 2 . Weapon Failures 1 | . . 1 Overload Shots . | . . . Overflow Damage 4 | . 3 1 Projectiles . | . . . Explosions 4 | . 3 1 Melee . | . . . Knockbacks . | . . . Impact . | . . . Kinetic . | . . . Secondary . | . . . Self-Inflicted Damage 201 | . 89 112 Shots 8 | . 4 4 Rammed . | . . . Targets Rammed . | . . . Kicked . | . . . Crushed . | . . . Highest Temperature 432 | 39 432 253 Average Temperature 112 | 20 115 97 Received Heat Transfer 486 | . 423 63 Effects 4 | . 4 . Energy Bleed 2 | . 2 . Interference 2 | . 2 . Siege Activations . | . . . Robots Corrupted . | . . . Combat Hostiles . | . . . Parts Fried 7 | . 7 . Impact Corruptions . | . . . Robots Melted . | . . . Combat Hostiles . | . . . Parts Melted . | . . . Heat Transferred 437 | 37 400 . Parts Sabotaged . | . . . Parts Stolen . | . . . Parts Stripped . | . . . Power Chain Reactions 5 | . 5 . Alert | -11 -10 -10 ------- Run | Yrd Mat Min Peak Influence 199 | 5 199 83 Initial 63 | . 3 63 Average 95 | . 101 65 Maximum Alert Level . | . . . Low Security (%) 100 | 100 100 100 Level 1 . | . . . Level 2 . | . . . Level 3 . | . . . Level 4 . | . . . Level 5 . | . . . High Security . | . . . Max Security . | . . . Squads Dispatched 5 | . 5 . Investigation 3 | . 3 . Extermination . | . . . Reinforcement 2 | . 2 . Assault . | . . . Garrison . | . . . Intercept . | . . . Searches Triggered . | . . . Construction Impeded . | . . . Haulers Reinforced . | . . . Active Scanning Responses . | . . . Cargo Convoy Interrupts . | . . . Stealth | -11 -10 -10 --------- Run | Yrd Mat Min Distress Signals 1 | . 1 . Communications Jammed . | . . . Distress Signals . | . . . Times Spotted 30 | . 26 4 Peak Tracking Total 5 | . 5 2 Tactical Retreats 2 | . 2 . Traps | -11 -10 -10 ------- Run | Yrd Mat Min Traps Triggered 3 | . 3 . Indirectly . | . . . Trap Hack Attempts . | . . . Triggered . | . . . Disarmed . | . . . Reprogrammed . | . . . Reused . | . . . Traps Extracted . | . . . Installed . | . . . Triggered . | . . . Machines | -11 -10 -10 ---------- Run | Yrd Mat Min Machines Disabled 3 | . 3 . Max in Single Turn 2 | . 2 . Machines Repaired . | . . . Machines Dismantled . | . . . Machines Sabotaged . | . . . Overloaded Fab Kills . | . . . Hacking | -11 -10 -10 --------- Run | Yrd Mat Min Machines Accessed 8 | . 7 1 Terminals 5 | . 5 . Fabricators . | . . . Repair Stations . | . . . Recycling Units 2 | . 2 . Scanalyzers . | . . . Garrison Access . | . . . Total Hacks 27 | . 26 1 Successful 13 | . 12 1 Failed 14 | . 14 . Catastrophic 1 | . 1 . Database Lockouts . | . . . Manual 22 | . 22 . Terminals 20 | . 20 . Fabricators . | . . . Repair Stations . | . . . Recycling Units 6 | . 6 . Scanalyzers . | . . . Garrison Access . | . . . Terminal Hacks 1 | . . 1 Open Door 1 | . . 1 Fabricator Hacks . | . . . Repair Station Hacks . | . . . Recycling Unit Hacks 3 | . 3 . Report Inventory 2 | . 2 . Retrieve Components 1 | . 1 . Scanalyzer . | . . . Garrison Access Hacks . | . . . Unauthorized Hacks 9 | . 9 . Terminals 7 | . 7 . Assimilate 1 | . 1 . Botnet 5 | . 5 . Operators 1 | . 1 . Fabricators . | . . . Repair Stations . | . . . Recycling Units 2 | . 2 . Tunnel 2 | . 2 . Scanalyzers . | . . . Garrison Access . | . . . Data Cores Recovered 1 | . 1 . Used . | . . . Hacking Detections 5 | . 5 . Full Trace Events 2 | . 2 . Feedback Events . | . . . Feedback Blocked . | . . . Robot Schematics Acquired . | . . . Robots Built . | . . . Authchips . | . . . Time . | . . . Total Robot Build Rating . | . . . Part Schematics Acquired . | . . . Parts Built . | . . . Authchips . | . . . Time . | . . . Total Part Build Rating . | . . . Parts Repaired . | . . . Time . | . . . Parts Recycled . | . . . Recycled Matter . | . . . Retrieved Matter . | . . . Retrieved Components 3 | . 3 . Parts Scanalyzed . | . . . Part Schematics Acquired . | . . . Parts Damaged . | . . . Bothacking | -11 -10 -10 ------------ Run | Yrd Mat Min Used RIF Installer . | . . . Robots Hacked . | . . . Non-combat . | . . . Combat . | . . . Robot Hacks Applied . | . . . Relay Couplers Released . | . . . Fabnet Peak Effective % . | . . . Robots Rewired . | . . . Allies Hacked . | . . . Hacks Repelled . | . . . Allies | -11 -10 -10 -------- Run | Yrd Mat Min Total Allies . | . . . Largest Group . | . . . Highest-Rated Group . | . . . Highest-Rated Ally . | . . . Total Orders . | . . . Ally Attacks . | . . . Total Damage . | . . . Kills . | . . . Allies Corrupted . | . . . Allies Melted . | . . . Intel | -11 -10 -10 ------- Run | Yrd Mat Min Robot Analysis Total . | . . . Derelict Logs Recovered . | . . . Drone Launches . | . . . Drone Recoveries . | . . . Exploration | -11 -10 -10 ------------- Run | Yrd Mat Min Turns Passed 3534 | 91 3035 408 Spaces Moved 982 | 49 836 97 Core 4 | 2 . 2 Treads 941 | 47 836 58 Legs 37 | . . 37 Wheels . | . . . Hover . | . . . Flight . | . . . Fastest Speed 50 | 50 160 320 Average Speed 281 | 155 277 377 Slowest Speed 1500 | 160 320 1500 Overloaded Moves . | . . . Propulsion Burnouts . | . . . Robots Hopped . | . . . Cave-ins Triggered . | . . . Exploration Rate (%) 40 | 5 96 20 Regions Visited 2 Branch Regions 1 Pre-discovered Areas 2 | . 2 . Known Exits Taken . | . . . Unknown Exits Taken 2 | 1 1 . Scrap Searched . | . . . Spaces Dug 33 | . 33 . Terrain Destroyed 110 | . 89 21 Melee . | . . . Projectile . | . . . AOE 110 | . 89 21 Terrain Rammed . | . . . Walls Destroyed . | . . . Machines Disabled . | . . . Actions | -11 -10 -10 --------- Run | Yrd Mat Min Total 1557 | 58 1382 117 Wait 387 | . 385 2 Move 980 | 48 835 97 Hop . | . . . Pick Up 37 | 2 34 1 Fast Attach 12 | 7 3 2 Attach 9 | . 6 3 Detach 1 | . 1 . Swap 12 | . 11 1 Drop 16 | . 16 . Fire 103 | 1 91 11 Melee . | . . . Ram . | . . . Kick . | . . . Crush . | . . . Escape Stasis . | . . . Rewire . | . . . Trap . | . . . Miscellaneous . | . . . Route ------- -11/Scrapyard -10/Materials (discovered 4 exits: [*Mat x3] / *Min) -10/Mines History --------- Turn | Location | Event 13 | -11/Scrapyard | Discovered new exit (range 15) 92 | -11/Scrapyard | Entered Materials 318 | -10/Materials | Build established: Mutant 799 | -10/Materials | Discovered new exit (range 11) 1196 | -10/Materials | Discovered new exit (range 15) 2101 | -10/Materials | Discovered new exit (range 16) 2995 | -10/Materials | Discovered new exit (range 8) 3127 | -10/Materials | Entered Mines 3144 | -10/Mines | Found the Drone Emporium 3166 | -10/Mines | Found Prototype Device 3367 | -10/Mines | Lost 5 parts (1p2n2w) 3496 | -10/Mines | Assembled infested the area 3501 | -10/Mines | Assisted by a Guerilla fighting off Assembled 3528 | -10/Mines | Core integrity fell below 50% 3534 | -10/Mines | Core integrity fell below 20% 3535 | -10/Mines | Destroyed by D-53 Grenadier with Mini Grenade Launcher Last Messages --------------- 03475_ U-05 Engineer lays Concrete. 03479_ Acquired 31 matter. 03479_ U-05 Engineer lays Concrete. 03496_ ALERT: Infestation in the mines, dispatching Demolisher response squad. 03501_ A derelict emerges from the shadows: "You need to get out of here! I've been tracking a group of Assembled to figure out where they're coming from, and they're closing on this area, come on!" 03510_ System corrupted: Matter fused (-10). 03512_ 45-OLE(h): "I'll hold them off! Go on ahead or try to find another way!" 03517_ C-30 ARC bursts open, deploying its payload. 03517_ D-53 Grenadier unfolds itself. 03525_ U-05 Engineer destroyed. 03525_ Aluminum Leg destroyed. 03527_ Med. Armor Plating destroyed. 03528_ K-01 Serf collects debris. 03532_ The unstable cave ceiling collapses. 03532_ Med. Armor Plating destroyed. 03532_ Destroyed Med. Armor Plating. 03532_ Aluminum Leg destroyed. 03532_ Destroyed Aluminum Leg. 03533_ D-53 Grenadier destroyed. Map ----- +----------------------------------------------------+ | ??????????????????????#" #X #?????? | | ??????????????????????#" #?????? | | ??????????????????????#" #?????? | | ??????????????????????#" # #?????? | | ??????????????????????##""## #?????? | | ???????????????????????###### #?????? | | ??????????????????# ######??# #?????? | | ??????????????????# #??# #?????? | | ??????????????????##### #??# #?????? | | ??????????????????????# #??##### #####?????? | | ??????????????????????# #??????# #?????????? | | ?????????????????????## #??????# #?????????? | | ????????????????????## ###???## #?????????? | | ????????????????????# u% ##?## #?????????? | | ????????????????????# k ### #?????????? | | ???????????????????## #?????????? | | ????????????????#### ##?????????? | | ???????????????## ##??????????? | | ???????????????# ##???????????? | | ???????????????# ##????????????? | | ??????????????## ## ##????????????? | | ??????????????# ## d #????????????? | | ??????????????# # #????????????? | | ??????????????# #????????????? | | ??????????????## #?????????????? | | ???????????????### @ #??????????????? | | ?????????????????## #??????????????? | | ??????????????????### #??????????????? | | ????????????????????## ##??????????????? | | ?????????????????????## ##???????????????? | | ??????????????????????#### #????????????????? | | ?????????????????????????# #????????????????? | | ????????????????????????? #????????????????? | | ????????????????????????? #????????????????? | | ????????????????????????? ????????????????? | | ????????????????????????? ????????????????? | | ???????????????????????? ????????????????? | | ???????????????????????? #####???????????????? | | ???????????????????????? ????????????????????? | | ???????????????????????? ????????????????????? | | ?????????????????????????????????????????????? | | ?????????????????????????????????????????????? | | ?????????????????????????????????????????????? | | ?????????????????????????????????????????????? | | ?????????????????????????????????????????????? | | ?????????????????????????????????????????????? | | ?????????????????????????????????????????????? | | ?????????????????????????????????????????????? | | ?????????????????????????????????????????????? | | ?????????????????????????????????????????????? | +----------------------------------------------------+ Best States ------------- Heat Dissipation 25 Energy Generation 10 Energy Capacity 250 Matter Stores 300 Matter Capacity 300 Sight Range 16 Terrain Scan Range 16 Terrain Scan Density 10 Armor Coverage 225 Evasion (%) 40 Recoil Reduction 2 Authchip Count 1 Item Schematics ----------------- None Robot Schematics ------------------ None Fabricated ------------ Nothing Alien Tech Used ----------------- None Achievements -------------- None Challenges ------------ None Game ------ Seed HardcellThrowingStorm Manual? 0 Play Time 00:18:06 Cumulative 40.5 hours Start 2024.11.10 @ 09:23:57 End 2024.11.10 @ 09:40:26 Sessions 1 Manual Loads 0 Difficulty Rogue Special Mode None Game No. 76 Rogue 76 Adventurer 0 Explorer 0 Win Type - Total 0 Types 0/0/0/0/0/0/0/0/0 Lore% 34 Gallery% 29 Achievement% 32 Wizard Run 0 Options --------- Layout 0 ASCII 0 Keyboard 0 Movement Mouse Keybinds 0 Fullscreen 1 Font 24/Smallcaps Map View 183x50 Zoom Use 23% Tactical HUD 1 Map Filters NONE Filters NONE Steam 1 RUN: 76190afa-757a-4e5b-bf80-c0aa11e32585